[Event "Early Titled Tuesday Blitz | February 8 2022"]
[White "Ter-Sahakyan, Samvel"]
[Black "Bruned, Yvain"]
[WhiteFideId "13302531"]
[BlackFideId "2250292"]
[WhiteElo "2592"]
[BlackElo "2073"]
[Result "1/2-1/2"]
[Round "01"]
[TimeControl "180+1"]
[Date "2022.02.08"]
[WhiteClock "0:00:04"]
[BlackClock "0:00:08"]

1. Nf3 {[%clk 0:02:56]}  b6 {[%clk 0:03:00]} 2. d4 {[%clk 0:02:55]}  Bb7 {[%clk 0:03:01]} 3. c4 {[%clk 0:02:54]}  e6 {[%clk 0:03:01]} 4. g3 {[%clk 0:02:53]}  Bb4+ {[%clk 0:02:57]} 5. Nc3 {[%clk 0:02:47]}  Bxc3+ {[%clk 0:02:56]} 6. bxc3 {[%clk 0:02:46]}  Nf6 {[%clk 0:02:57]} 7. Bg2 {[%clk 0:02:46]}  O-O {[%clk 0:02:57]} 8. O-O {[%clk 0:02:46]}  d6 {[%clk 0:02:58]} 9. Re1 {[%clk 0:02:28]}  Nbd7 {[%clk 0:02:57]} 10. Bf1 {[%clk 0:02:28]}  h6 {[%clk 0:02:50]} 11. Nd2 {[%clk 0:02:26]}  Ne4 {[%clk 0:02:37]} 12. Nxe4 {[%clk 0:02:21]}  Bxe4 {[%clk 0:02:38]} 13. f3 {[%clk 0:02:22]}  Bb7 {[%clk 0:02:38]} 14. e4 {[%clk 0:02:19]}  e5 {[%clk 0:02:38]} 15. g4 {[%clk 0:02:01]}  Qe7 {[%clk 0:02:30]} 16. a4 {[%clk 0:01:55]}  a5 {[%clk 0:02:29]} 17. Ra2 {[%clk 0:01:55]}  g5 {[%clk 0:02:29]} 18. h4 {[%clk 0:01:54]}  f6 {[%clk 0:02:29]} 19. Rh2 {[%clk 0:01:54]}  Kg7 {[%clk 0:02:30]} 20. Bd3 {[%clk 0:01:49]}  Rh8 {[%clk 0:02:29]} 21. Kf2 {[%clk 0:01:46]}  Rh7 {[%clk 0:02:29]} 22. Reh1 {[%clk 0:01:46]}  Rah8 {[%clk 0:02:29]} 23. Qb3 {[%clk 0:01:40]}  Kf8 {[%clk 0:02:26]} 24. Rh3 {[%clk 0:01:27]}  Bc6 {[%clk 0:02:22]} 25. Be3 {[%clk 0:01:17]}  Kg7 {[%clk 0:02:21]} 26. Bc2 {[%clk 0:01:16]}  Bb7 {[%clk 0:02:12]} 27. R1h2 {[%clk 0:01:15]}  Bc6 {[%clk 0:02:11]} 28. Qb1 {[%clk 0:01:15]}  Bb7 {[%clk 0:02:06]} 29. Bb3 {[%clk 0:01:13]}  Bc6 {[%clk 0:02:02]} 30. Qh1 {[%clk 0:01:12]}  Nf8 {[%clk 0:01:54]} 31. Ke2 {[%clk 0:00:57]}  Qd7 {[%clk 0:01:41]} 32. Qd1 {[%clk 0:00:47]}  Qe7 {[%clk 0:01:38]} 33. Kd2 {[%clk 0:00:42]}  Nd7 {[%clk 0:01:33]} 34. Kc1 {[%clk 0:00:39]}  Bb7 {[%clk 0:01:32]} 35. Kb2 {[%clk 0:00:38]}  Bc6 {[%clk 0:01:30]} 36. Qh1 {[%clk 0:00:37]}  Nf8 {[%clk 0:01:30]} 37. Qg1 {[%clk 0:00:29]}  Nd7 {[%clk 0:01:28]} 38. Qf2 {[%clk 0:00:29]}  Bb7 {[%clk 0:01:27]} 39. Rh1 {[%clk 0:00:28]}  Bc6 {[%clk 0:01:24]} 40. R1h2 {[%clk 0:00:28]}  Bb7 {[%clk 0:01:24]} 41. Qe1 {[%clk 0:00:29]}  Bc6 {[%clk 0:01:21]} 42. Qh1 {[%clk 0:00:29]}  Nf8 {[%clk 0:01:20]} 43. hxg5 {[%clk 0:00:29]}  hxg5 {[%clk 0:01:19]} 44. Rh5 {[%clk 0:00:28]}  Be8 {[%clk 0:01:10]} 45. Rxh7+ {[%clk 0:00:25]}  Rxh7 {[%clk 0:01:09]} 46. Rxh7+ {[%clk 0:00:25]}  Nxh7 {[%clk 0:01:10]} 47. c5 {[%clk 0:00:25]}  dxc5 {[%clk 0:01:00]} 48. dxc5 {[%clk 0:00:25]}  bxc5 {[%clk 0:01:01]} 49. Qg1 {[%clk 0:00:25]}  c4 {[%clk 0:00:59]} 50. Bxc4 {[%clk 0:00:26]}  Bxa4 {[%clk 0:00:58]} 51. Qa1 {[%clk 0:00:24]}  Qe8 {[%clk 0:00:52]} 52. Qa3 {[%clk 0:00:23]}  Nf8 {[%clk 0:00:41]} 53. Qc5 {[%clk 0:00:18]}  Ne6 {[%clk 0:00:35]} 54. Qxa5 {[%clk 0:00:18]}  Qb8+ {[%clk 0:00:21]} 55. Qb4 {[%clk 0:00:15]}  Qxb4+ {[%clk 0:00:16]} 56. cxb4 {[%clk 0:00:16]}  Nd4 {[%clk 0:00:15]} 57. Bxd4 {[%clk 0:00:16]}  exd4 {[%clk 0:00:16]} 58. Kc1 {[%clk 0:00:07]}  Kf8 {[%clk 0:00:10]} 59. Kd2 {[%clk 0:00:08]}  Ke7 {[%clk 0:00:11]} 60. Kd3 {[%clk 0:00:03]}  Bd1 {[%clk 0:00:10]} 61. Kxd4 {[%clk 0:00:04]}  Bxf3 {[%clk 0:00:10]} 62. e5 {[%clk 0:00:03]}  Bxg4 {[%clk 0:00:08]} 63. exf6+ {[%clk 0:00:03]}  Kxf6 {[%clk 0:00:09]} 64. Bd5 {[%clk 0:00:04]}  Bd7 {[%clk 0:00:09]} 65. Bf3 {[%clk 0:00:02]}  g4 {[%clk 0:00:09]} 66. Bg2 {[%clk 0:00:02]}  Kg5 {[%clk 0:00:10]} 67. Kc5 {[%clk 0:00:03]}  Kf4 {[%clk 0:00:09]} 68. Bd5 {[%clk 0:00:03]}  Bf5 {[%clk 0:00:09]} 69. b5 {[%clk 0:00:03]}  Bd7 {[%clk 0:00:08]} 70. Bg2 {[%clk 0:00:03]}  Kg3 {[%clk 0:00:07]} 71. Be4 {[%clk 0:00:03]}  Kf4 {[%clk 0:00:06]} 72. Bd5 {[%clk 0:00:03]}  g3 {[%clk 0:00:07]} 73. Bg2 {[%clk 0:00:03]}  Ke3 {[%clk 0:00:07]} 74. Bd5 {[%clk 0:00:03]}  Kf2 {[%clk 0:00:07]} 75. Be4 {[%clk 0:00:03]}  g2 {[%clk 0:00:07]} 76. Bxg2 {[%clk 0:00:03]}  Kxg2 {[%clk 0:00:07]} 77. b6 {[%clk 0:00:04]}  cxb6+ {[%clk 0:00:08]} 78. Kxb6 {[%clk 0:00:04]} 1/2-1/2


[Site "https://www.chess.com"]

[Event "Early Titled Tuesday Blitz | February 8 2022"]
[White "Timofeev, Artyom"]
[Black "Hamley, Ryan"]
[WhiteFideId "4140419"]
[BlackFideId "30959497"]
[WhiteElo "2583"]
[BlackElo "2472"]
[Result "1-0"]
[Round "01"]
[TimeControl "180+1"]
[Date "2022.02.08"]
[WhiteClock "0:01:01"]
[BlackClock "0:00:35"]

1. d4 {[%clk 0:03:00]}  d5 {[%clk 0:02:58]} 2. c4 {[%clk 0:02:59]}  c6 {[%clk 0:02:58]} 3. Nf3 {[%clk 0:02:58]}  Nf6 {[%clk 0:02:59]} 4. Nc3 {[%clk 0:02:58]}  e6 {[%clk 0:02:59]} 5. e3 {[%clk 0:02:56]}  Bd6 {[%clk 0:02:58]} 6. Bd3 {[%clk 0:02:55]}  dxc4 {[%clk 0:02:55]} 7. Bxc4 {[%clk 0:02:55]}  b5 {[%clk 0:02:56]} 8. Bd3 {[%clk 0:02:55]}  Nbd7 {[%clk 0:02:56]} 9. O-O {[%clk 0:02:54]}  O-O {[%clk 0:02:56]} 10. h3 {[%clk 0:02:41]}  Bb7 {[%clk 0:02:55]} 11. a3 {[%clk 0:02:41]}  a6 {[%clk 0:02:54]} 12. b4 {[%clk 0:02:41]}  e5 {[%clk 0:02:51]} 13. Qc2 {[%clk 0:02:33]}  Qe7 {[%clk 0:02:48]} 14. Bb2 {[%clk 0:02:29]}  a5 {[%clk 0:02:42]} 15. Ne4 {[%clk 0:02:20]}  exd4 {[%clk 0:02:21]} 16. Nxd6 {[%clk 0:02:16]}  Qxd6 {[%clk 0:02:21]} 17. Nxd4 {[%clk 0:02:15]}  axb4 {[%clk 0:02:13]} 18. Nf5 {[%clk 0:02:12]}  Qc5 {[%clk 0:02:13]} 19. axb4 {[%clk 0:02:09]}  Qxb4 {[%clk 0:02:02]} 20. Rfd1 {[%clk 0:02:00]}  Qc5 {[%clk 0:01:10]} 21. Qe2 {[%clk 0:01:24]}  Rfe8 {[%clk 0:00:57]} 22. Bd4 {[%clk 0:01:16]}  Qf8 {[%clk 0:00:54]} 23. Qb2 {[%clk 0:01:16]}  c5 {[%clk 0:00:45]} 24. Bxf6 {[%clk 0:01:15]}  Nxf6 {[%clk 0:00:44]} 25. Bxb5 {[%clk 0:01:15]}  Red8 {[%clk 0:00:42]} 26. Bc4 {[%clk 0:01:07]}  Be4 {[%clk 0:00:41]} 27. Nh6+ {[%clk 0:01:02]}  gxh6 {[%clk 0:00:35]} 28. Qxf6 {[%clk 0:01:02]}  Qg7 {[%clk 0:00:35]} 29. Rxd8+ {[%clk 0:01:01]} 1-0


[Site "https://www.chess.com"]

[Event "Early Titled Tuesday Blitz | February 8 2022"]
[White "Todorovic, Bojan"]
[Black "Seo, Jung Min"]
[WhiteFideId "917087"]
[BlackFideId "1734687"]
[WhiteElo "2266"]
[BlackElo "2401"]
[Result "0-1"]
[Round "01"]
[TimeControl "180+1"]
[Date "2022.02.08"]
[WhiteClock "0:00:03"]
[BlackClock "0:00:41"]

1. Nf3 {[%clk 0:02:58]}  d5 {[%clk 0:02:59]} 2. c4 {[%clk 0:02:57]}  d4 {[%clk 0:02:58]} 3. b4 {[%clk 0:02:56]}  f6 {[%clk 0:02:55]} 4. e3 {[%clk 0:02:50]}  e5 {[%clk 0:02:54]} 5. Qb3 {[%clk 0:02:46]}  a5 {[%clk 0:02:51]} 6. b5 {[%clk 0:02:42]}  Bc5 {[%clk 0:02:45]} 7. exd4 {[%clk 0:02:38]}  Bxd4 {[%clk 0:02:39]} 8. Nxd4 {[%clk 0:02:37]}  Qxd4 {[%clk 0:02:39]} 9. Bb2 {[%clk 0:02:37]}  Qe4+ {[%clk 0:02:39]} 10. Qe3 {[%clk 0:02:36]}  Qxe3+ {[%clk 0:02:37]} 11. fxe3 {[%clk 0:02:36]}  Ne7 {[%clk 0:02:35]} 12. Nc3 {[%clk 0:02:35]}  O-O {[%clk 0:02:34]} 13. Be2 {[%clk 0:02:34]}  Re8 {[%clk 0:02:34]} 14. O-O {[%clk 0:02:28]}  Be6 {[%clk 0:02:34]} 15. d4 {[%clk 0:02:24]}  Nd7 {[%clk 0:02:31]} 16. Bf3 {[%clk 0:02:21]}  c6 {[%clk 0:02:30]} 17. bxc6 {[%clk 0:02:17]}  bxc6 {[%clk 0:02:29]} 18. d5 {[%clk 0:02:16]}  Bf7 {[%clk 0:02:22]} 19. dxc6 {[%clk 0:02:14]}  Nc5 {[%clk 0:02:20]} 20. Ba3 {[%clk 0:02:09]}  Nd3 {[%clk 0:02:16]} 21. Bd5 {[%clk 0:01:58]}  Nb4 {[%clk 0:02:13]} 22. e4 {[%clk 0:01:43]}  Rac8 {[%clk 0:02:03]} 23. Nb5 {[%clk 0:01:35]}  Nc2 {[%clk 0:01:51]} 24. Bxe7 {[%clk 0:01:30]}  Rxe7 {[%clk 0:01:49]} 25. Nd6 {[%clk 0:01:27]}  Nxa1 {[%clk 0:01:45]} 26. Nxf7 {[%clk 0:01:20]}  Rxf7 {[%clk 0:01:43]} 27. Rxa1 {[%clk 0:01:20]}  Kf8 {[%clk 0:01:43]} 28. Bxf7 {[%clk 0:01:17]}  Kxf7 {[%clk 0:01:43]} 29. Rb1 {[%clk 0:01:13]}  Rxc6 {[%clk 0:01:43]} 30. Rc1 {[%clk 0:01:05]}  Ke6 {[%clk 0:01:41]} 31. Kf2 {[%clk 0:01:05]}  Kd6 {[%clk 0:01:41]} 32. Ke3 {[%clk 0:01:05]}  Kc5 {[%clk 0:01:41]} 33. Rd1 {[%clk 0:00:59]}  Rc7 {[%clk 0:01:38]} 34. Rd5+ {[%clk 0:00:58]}  Kxc4 {[%clk 0:01:33]} 35. Rxa5 {[%clk 0:00:58]}  Rd7 {[%clk 0:01:33]} 36. Ra4+ {[%clk 0:00:42]}  Kc3 {[%clk 0:01:32]} 37. Ra3+ {[%clk 0:00:43]}  Kc2 {[%clk 0:01:30]} 38. Ra6 {[%clk 0:00:40]}  Rd3+ {[%clk 0:01:29]} 39. Ke2 {[%clk 0:00:40]}  Rd2+ {[%clk 0:01:25]} 40. Kf3 {[%clk 0:00:40]}  Rd7 {[%clk 0:01:20]} 41. h4 {[%clk 0:00:32]}  Kb2 {[%clk 0:01:16]} 42. h5 {[%clk 0:00:30]}  h6 {[%clk 0:01:13]} 43. Kg4 {[%clk 0:00:29]}  Kc3 {[%clk 0:01:12]} 44. Kf5 {[%clk 0:00:28]}  Kd3 {[%clk 0:01:12]} 45. Ra3+ {[%clk 0:00:26]}  Ke2 {[%clk 0:01:11]} 46. Rg3 {[%clk 0:00:23]}  Kf2 {[%clk 0:01:09]} 47. Rg6 {[%clk 0:00:23]}  Ke3 {[%clk 0:01:07]} 48. Ke6 {[%clk 0:00:21]}  Ra7 {[%clk 0:01:07]} 49. Kd5 {[%clk 0:00:20]}  Ra5+ {[%clk 0:01:04]} 50. Kc4 {[%clk 0:00:15]}  Kxe4 {[%clk 0:01:03]} 51. Rxg7 {[%clk 0:00:15]}  Rxa2 {[%clk 0:01:03]} 52. Rg4+ {[%clk 0:00:10]}  Ke3 {[%clk 0:00:59]} 53. Rg6 {[%clk 0:00:10]}  f5 {[%clk 0:00:59]} 54. Kd5 {[%clk 0:00:09]}  e4 {[%clk 0:00:57]} 55. Ke5 {[%clk 0:00:09]}  f4 {[%clk 0:00:54]} 56. Kf5 {[%clk 0:00:04]}  Rb2 {[%clk 0:00:41]} 57. Re6 {[%clk 0:00:03]}  Rb5+ {[%clk 0:00:41]} 0-1


[Site "https://www.chess.com"]

[Event "Early Titled Tuesday Blitz | February 8 2022"]
[White "Urazayev, Arystanbek"]
[Black "Tarhan, Adar"]
[WhiteFideId "13709810"]
[BlackFideId "34544712"]
[WhiteElo "2321"]
[BlackElo "1802"]
[Result "1-0"]
[Round "01"]
[TimeControl "180+1"]
[Date "2022.02.08"]
[WhiteClock "0:01:36"]
[BlackClock "0:01:34"]

1. e4 {[%clk 0:03:00]}  c6 {[%clk 0:02:56]} 2. Nf3 {[%clk 0:03:00]}  d5 {[%clk 0:02:57]} 3. d3 {[%clk 0:03:01]}  dxe4 {[%clk 0:02:47]} 4. dxe4 {[%clk 0:03:02]}  Qxd1+ {[%clk 0:02:48]} 5. Kxd1 {[%clk 0:03:03]}  Bg4 {[%clk 0:02:48]} 6. Be2 {[%clk 0:03:02]}  Nd7 {[%clk 0:02:45]} 7. Ne1 {[%clk 0:03:02]}  Bxe2+ {[%clk 0:02:44]} 8. Kxe2 {[%clk 0:03:03]}  e6 {[%clk 0:02:44]} 9. Nd3 {[%clk 0:02:59]}  O-O-O {[%clk 0:02:34]} 10. Be3 {[%clk 0:02:59]}  b6 {[%clk 0:02:33]} 11. a4 {[%clk 0:02:58]}  Ngf6 {[%clk 0:02:29]} 12. f3 {[%clk 0:02:58]}  Kb7 {[%clk 0:02:28]} 13. a5 {[%clk 0:02:57]}  c5 {[%clk 0:02:23]} 14. Na3 {[%clk 0:02:53]}  Be7 {[%clk 0:02:19]} 15. Rhb1 {[%clk 0:02:23]}  Rc8 {[%clk 0:02:13]} 16. c4 {[%clk 0:01:57]}  Rhd8 {[%clk 0:02:09]} 17. a6+ {[%clk 0:01:52]}  Ka8 {[%clk 0:02:01]} 18. Nb5 {[%clk 0:01:52]}  Nb8 {[%clk 0:01:56]} 19. Ne5 {[%clk 0:01:52]}  Rf8 {[%clk 0:01:54]} 20. Rd1 {[%clk 0:01:49]}  Nc6 {[%clk 0:01:52]} 21. Nxc6 {[%clk 0:01:49]}  Rxc6 {[%clk 0:01:53]} 22. Bf4 {[%clk 0:01:49]}  Bd8 {[%clk 0:01:47]} 23. Rd3 {[%clk 0:01:39]}  Nh5 {[%clk 0:01:39]} 24. Bd6 {[%clk 0:01:38]}  Re8 {[%clk 0:01:38]} 25. Rad1 {[%clk 0:01:37]}  f6 {[%clk 0:01:34]} 26. g4 {[%clk 0:01:36]} 1-0


[Site "https://www.chess.com"]

[Event "Early Titled Tuesday Blitz | February 8 2022"]
[White "Varney, Zoe"]
[Black "Atanasov, Anthony"]
[WhiteFideId "436135"]
[BlackFideId "2623897"]
[WhiteElo "1808"]
[BlackElo "1928"]
[Result "0-1"]
[Round "01"]
[TimeControl "180+1"]
[Date "2022.02.08"]
[WhiteClock "0:00:04"]
[BlackClock "0:01:29"]

1. e4 {[%clk 0:02:59]}  c5 {[%clk 0:02:58]} 2. Nf3 {[%clk 0:02:57]}  d6 {[%clk 0:02:58]} 3. d4 {[%clk 0:02:57]}  cxd4 {[%clk 0:02:59]} 4. Nxd4 {[%clk 0:02:56]}  Nf6 {[%clk 0:03:00]} 5. Nc3 {[%clk 0:02:56]}  a6 {[%clk 0:03:01]} 6. Be3 {[%clk 0:02:55]}  e6 {[%clk 0:03:01]} 7. f3 {[%clk 0:02:54]}  b5 {[%clk 0:03:00]} 8. Qd2 {[%clk 0:02:54]}  Nbd7 {[%clk 0:03:00]} 9. g4 {[%clk 0:02:54]}  h6 {[%clk 0:03:00]} 10. h4 {[%clk 0:02:47]}  Bb7 {[%clk 0:02:59]} 11. Be2 {[%clk 0:02:35]}  b4 {[%clk 0:02:54]} 12. Na4 {[%clk 0:02:20]}  d5 {[%clk 0:02:39]} 13. exd5 {[%clk 0:01:44]}  Nxd5 {[%clk 0:02:40]} 14. O-O-O {[%clk 0:01:36]}  Qa5 {[%clk 0:02:34]} 15. b3 {[%clk 0:01:11]}  Nc5 {[%clk 0:02:32]} 16. Nxc5 {[%clk 0:00:30]}  Qa3+ {[%clk 0:01:50]} 17. Kb1 {[%clk 0:00:18]}  Bxc5 {[%clk 0:01:41]} 18. Nb5 {[%clk 0:00:05]}  axb5 {[%clk 0:01:27]} 19. Bxb5+ {[%clk 0:00:06]}  Kd8 {[%clk 0:01:28]} 20. Bxc5 {[%clk 0:00:03]}  Qxa2+ {[%clk 0:01:28]} 21. Kc1 {[%clk 0:00:04]}  Qa1# {[%clk 0:01:29]} 0-1


[Site "https://www.chess.com"]

[Event "Early Titled Tuesday Blitz | February 8 2022"]
[White "Visakh N R"]
[Black "Tay, Junior"]
[WhiteFideId "25012223"]
[BlackFideId "5800439"]
[WhiteElo "2454"]
[BlackElo "2216"]
[Result "1-0"]
[Round "01"]
[TimeControl "180+1"]
[Date "2022.02.08"]
[WhiteClock "0:01:43"]
[BlackClock "0:00:19"]

1. e4 {[%clk 0:03:00]}  Nc6 {[%clk 0:02:58]} 2. Nf3 {[%clk 0:02:57]}  e5 {[%clk 0:02:56]} 3. Bb5 {[%clk 0:02:55]}  f5 {[%clk 0:02:55]} 4. Nc3 {[%clk 0:02:50]}  fxe4 {[%clk 0:02:54]} 5. Nxe4 {[%clk 0:02:51]}  Nf6 {[%clk 0:02:54]} 6. Nxf6+ {[%clk 0:02:48]}  Qxf6 {[%clk 0:02:54]} 7. O-O {[%clk 0:02:49]}  Nd4 {[%clk 0:02:52]} 8. Nxd4 {[%clk 0:02:48]}  exd4 {[%clk 0:02:52]} 9. Bc4 {[%clk 0:02:44]}  c6 {[%clk 0:02:50]} 10. d3 {[%clk 0:02:33]}  d5 {[%clk 0:02:46]} 11. Bb3 {[%clk 0:02:31]}  Bd6 {[%clk 0:02:43]} 12. Qh5+ {[%clk 0:02:29]}  g6 {[%clk 0:02:36]} 13. Qh6 {[%clk 0:02:29]}  Bf8 {[%clk 0:02:18]} 14. Re1+ {[%clk 0:02:26]}  Kf7 {[%clk 0:02:17]} 15. Qg5 {[%clk 0:02:22]}  Be7 {[%clk 0:02:11]} 16. Qxf6+ {[%clk 0:02:20]}  Bxf6 {[%clk 0:02:11]} 17. Bf4 {[%clk 0:02:19]}  Bf5 {[%clk 0:02:09]} 18. f3 {[%clk 0:02:16]}  h5 {[%clk 0:02:08]} 19. Be5 {[%clk 0:02:10]}  Rhe8 {[%clk 0:01:55]} 20. Bxf6 {[%clk 0:02:07]}  Kxf6 {[%clk 0:01:54]} 21. Kf2 {[%clk 0:02:08]}  b5 {[%clk 0:01:28]} 22. Rad1 {[%clk 0:01:58]}  a5 {[%clk 0:01:17]} 23. Rxe8 {[%clk 0:01:55]}  Rxe8 {[%clk 0:01:14]} 24. c3 {[%clk 0:01:56]}  Re3 {[%clk 0:01:05]} 25. cxd4 {[%clk 0:01:50]}  Rxd3 {[%clk 0:01:02]} 26. Rxd3 {[%clk 0:01:50]}  Bxd3 {[%clk 0:01:02]} 27. Ke3 {[%clk 0:01:51]}  Bc4 {[%clk 0:00:37]} 28. h4 {[%clk 0:01:50]}  Kf5 {[%clk 0:00:29]} 29. Bc2+ {[%clk 0:01:48]}  Kf6 {[%clk 0:00:29]} 30. a3 {[%clk 0:01:49]}  b4 {[%clk 0:00:25]} 31. axb4 {[%clk 0:01:48]}  axb4 {[%clk 0:00:26]} 32. g4 {[%clk 0:01:49]}  Bb5 {[%clk 0:00:19]} 33. g5+ {[%clk 0:01:47]}  Kf7 {[%clk 0:00:19]} 34. Kf4 {[%clk 0:01:47]}  Be2 {[%clk 0:00:19]} 35. Ba4 {[%clk 0:01:43]} 1-0


[Site "https://www.chess.com"]

[Event "Early Titled Tuesday Blitz | February 8 2022"]
[White "Vokhidov, Shamsiddin"]
[Black "Poormosavi, Seyed Kian"]
[WhiteFideId "14204223"]
[BlackFideId "12585807"]
[WhiteElo "2611"]
[BlackElo "2116"]
[Result "1-0"]
[Round "01"]
[TimeControl "180+1"]
[Date "2022.02.08"]
[WhiteClock "0:01:16"]
[BlackClock "0:00:38"]

1. e4 {[%clk 0:03:00]}  c6 {[%clk 0:02:54]} 2. d4 {[%clk 0:03:00]}  d5 {[%clk 0:02:54]} 3. e5 {[%clk 0:03:01]}  c5 {[%clk 0:02:53]} 4. Nf3 {[%clk 0:03:01]}  Nc6 {[%clk 0:02:47]} 5. dxc5 {[%clk 0:03:01]}  Bg4 {[%clk 0:02:45]} 6. c3 {[%clk 0:03:00]}  e6 {[%clk 0:02:43]} 7. b4 {[%clk 0:02:57]}  Nxe5 {[%clk 0:02:27]} 8. Qa4+ {[%clk 0:02:54]}  Qd7 {[%clk 0:02:01]} 9. Bb5 {[%clk 0:02:48]}  Nc6 {[%clk 0:02:01]} 10. Ne5 {[%clk 0:02:47]}  Nxe5 {[%clk 0:02:01]} 11. Bxd7+ {[%clk 0:02:46]}  Nxd7 {[%clk 0:02:01]} 12. O-O {[%clk 0:02:38]}  Nf6 {[%clk 0:02:01]} 13. Re1 {[%clk 0:02:37]}  Be7 {[%clk 0:02:00]} 14. Bf4 {[%clk 0:02:28]}  a5 {[%clk 0:01:58]} 15. Bd6 {[%clk 0:01:54]}  Bxd6 {[%clk 0:01:40]} 16. cxd6 {[%clk 0:01:55]}  O-O {[%clk 0:01:40]} 17. Nd2 {[%clk 0:01:54]}  axb4 {[%clk 0:01:27]} 18. Qxb4 {[%clk 0:01:52]}  b6 {[%clk 0:01:27]} 19. Nb3 {[%clk 0:01:41]}  Bf5 {[%clk 0:01:26]} 20. Nd4 {[%clk 0:01:40]}  Bd3 {[%clk 0:01:25]} 21. Nc6 {[%clk 0:01:37]}  Ne4 {[%clk 0:01:13]} 22. Re3 {[%clk 0:01:34]}  Ba6 {[%clk 0:01:04]} 23. Rxe4 {[%clk 0:01:22]}  dxe4 {[%clk 0:01:02]} 24. Qxe4 {[%clk 0:01:23]}  Bb7 {[%clk 0:01:02]} 25. Ne7+ {[%clk 0:01:23]}  Kh8 {[%clk 0:00:59]} 26. Qxb7 {[%clk 0:01:24]}  Nf6 {[%clk 0:00:38]} 27. Nc6 {[%clk 0:01:16]} 1-0


[Site "https://www.chess.com"]

[Event "Early Titled Tuesday Blitz | February 8 2022"]
[White "Volkov, Maksim"]
[Black "Araujo Filho, Luiz Antonio Coel"]
[WhiteFideId "54123070"]
[BlackFideId "2130661"]
[WhiteElo "2081"]
[BlackElo "2212"]
[Result "1-0"]
[Round "01"]
[TimeControl "180+1"]
[Date "2022.02.08"]
[WhiteClock "0:00:12"]
[BlackClock "0:00:01"]

1. d4 {[%clk 0:02:58]}  f5 {[%clk 0:02:56]} 2. c4 {[%clk 0:02:55]}  Nf6 {[%clk 0:02:55]} 3. Nc3 {[%clk 0:02:55]}  g6 {[%clk 0:02:55]} 4. Nf3 {[%clk 0:02:53]}  Bg7 {[%clk 0:02:55]} 5. e3 {[%clk 0:02:53]}  O-O {[%clk 0:02:55]} 6. b4 {[%clk 0:02:53]}  d6 {[%clk 0:02:55]} 7. Qb3 {[%clk 0:02:52]}  c6 {[%clk 0:02:53]} 8. a4 {[%clk 0:02:47]}  Qe8 {[%clk 0:02:53]} 9. Be2 {[%clk 0:02:43]}  Kh8 {[%clk 0:02:52]} 10. Bb2 {[%clk 0:02:40]}  e5 {[%clk 0:02:50]} 11. dxe5 {[%clk 0:02:36]}  dxe5 {[%clk 0:02:50]} 12. O-O {[%clk 0:02:31]}  h6 {[%clk 0:02:47]} 13. Rfd1 {[%clk 0:02:26]}  g5 {[%clk 0:02:46]} 14. Nxe5 {[%clk 0:02:03]}  Qxe5 {[%clk 0:02:35]} 15. Nd5 {[%clk 0:02:03]}  Qxb2 {[%clk 0:02:06]} 16. Qxb2 {[%clk 0:02:02]}  Nxd5 {[%clk 0:02:06]} 17. Rd4 {[%clk 0:01:41]}  c5 {[%clk 0:01:17]} 18. bxc5 {[%clk 0:01:34]}  Ne7 {[%clk 0:01:03]} 19. Rad1 {[%clk 0:01:27]}  Nbc6 {[%clk 0:01:00]} 20. Qa3 {[%clk 0:01:21]}  Nxd4 {[%clk 0:00:53]} 21. exd4 {[%clk 0:01:22]}  Bd7 {[%clk 0:00:43]} 22. d5 {[%clk 0:01:21]}  Ng6 {[%clk 0:00:41]} 23. Qb4 {[%clk 0:01:12]}  Rab8 {[%clk 0:00:38]} 24. a5 {[%clk 0:01:12]}  Nf4 {[%clk 0:00:33]} 25. Bf1 {[%clk 0:01:10]}  Rfe8 {[%clk 0:00:28]} 26. g3 {[%clk 0:01:08]}  Ng6 {[%clk 0:00:25]} 27. Bg2 {[%clk 0:01:06]}  f4 {[%clk 0:00:23]} 28. Qa3 {[%clk 0:00:45]}  a6 {[%clk 0:00:14]} 29. c6 {[%clk 0:00:38]}  bxc6 {[%clk 0:00:09]} 30. dxc6 {[%clk 0:00:39]}  Bg4 {[%clk 0:00:07]} 31. Rf1 {[%clk 0:00:31]}  f3 {[%clk 0:00:06]} 32. Bxf3 {[%clk 0:00:30]}  Bxf3 {[%clk 0:00:06]} 33. Qxf3 {[%clk 0:00:31]}  Rbc8 {[%clk 0:00:05]} 34. Qd5 {[%clk 0:00:19]}  Re7 {[%clk 0:00:03]} 35. Qd6 {[%clk 0:00:17]}  Kh7 {[%clk 0:00:01]} 36. Rb1 {[%clk 0:00:17]}  Rec7 {[%clk 0:00:02]} 37. Rb6 {[%clk 0:00:16]}  Bf8 {[%clk 0:00:02]} 38. Qe6 {[%clk 0:00:16]}  Bg7 {[%clk 0:00:01]} 39. Rxa6 {[%clk 0:00:15]}  Ne7 {[%clk 0:00:01]} 40. Rb6 {[%clk 0:00:14]}  Nxc6 {[%clk 0:00:01]} 41. a6 {[%clk 0:00:13]}  Na7 {[%clk 0:00:02]} 42. Rb7 {[%clk 0:00:12]}  Rxb7 {[%clk 0:00:01]} 43. axb7 {[%clk 0:00:13]}  Rb8 {[%clk 0:00:01]} 44. Qe4+ {[%clk 0:00:12]} 1-0


[Site "https://www.chess.com"]

[Event "Early Titled Tuesday Blitz | February 8 2022"]
[White "Xiong, Jeffery"]
[Black "Ronka, Erik"]
[WhiteFideId "2047640"]
[BlackFideId "505080"]
[WhiteElo "2727"]
[BlackElo "2264"]
[Result "1-0"]
[Round "01"]
[TimeControl "180+1"]
[Date "2022.02.08"]
[WhiteClock "0:02:05"]
[BlackClock "0:00:05"]

1. d4 {[%clk 0:03:00]}  Nf6 {[%clk 0:02:59]} 2. Nf3 {[%clk 0:03:00]}  g6 {[%clk 0:02:59]} 3. Nbd2 {[%clk 0:02:59]}  c5 {[%clk 0:02:54]} 4. dxc5 {[%clk 0:02:58]}  Qa5 {[%clk 0:02:51]} 5. a3 {[%clk 0:02:58]}  Qxc5 {[%clk 0:02:51]} 6. b4 {[%clk 0:02:58]}  Qc7 {[%clk 0:02:50]} 7. Bb2 {[%clk 0:02:59]}  Bg7 {[%clk 0:02:51]} 8. g3 {[%clk 0:02:59]}  O-O {[%clk 0:02:51]} 9. Bg2 {[%clk 0:03:00]}  b6 {[%clk 0:02:48]} 10. O-O {[%clk 0:02:57]}  Bb7 {[%clk 0:02:49]} 11. c4 {[%clk 0:02:57]}  d6 {[%clk 0:02:49]} 12. Qb3 {[%clk 0:02:57]}  Nbd7 {[%clk 0:02:50]} 13. Rfd1 {[%clk 0:02:57]}  Rac8 {[%clk 0:02:50]} 14. Rac1 {[%clk 0:02:57]}  Rfd8 {[%clk 0:02:48]} 15. Nf1 {[%clk 0:02:57]}  Qb8 {[%clk 0:02:41]} 16. Ne3 {[%clk 0:02:57]}  Be4 {[%clk 0:02:34]} 17. Bh3 {[%clk 0:02:50]}  Qa8 {[%clk 0:02:12]} 18. Ng5 {[%clk 0:02:50]}  Bb7 {[%clk 0:01:43]} 19. c5 {[%clk 0:02:48]}  d5 {[%clk 0:01:43]} 20. Bxf6 {[%clk 0:02:40]}  exf6 {[%clk 0:01:32]} 21. Nxd5 {[%clk 0:02:10]}  fxg5 {[%clk 0:01:06]} 22. Ne7+ {[%clk 0:02:09]}  Kf8 {[%clk 0:01:07]} 23. Nxc8 {[%clk 0:02:06]}  Qxc8 {[%clk 0:00:17]} 24. cxb6 {[%clk 0:02:05]}  Ne5 {[%clk 0:00:05]} 1-0


[Site "https://www.chess.com"]